Workbook

Sheet Shear Rate Ranges
A1: Enter viscometer parameters and sample viscosities to acquire max/min ranges
N2: note: flow rates are approximate
A3: Maximum Pressure (Pa) | B3: 10000 | D3: viscosity, mPa-s | E3: min shear rate, 1/s | F3: max shear rate, 1/s | G3: min flow rate, ul/min | H3: max flow rate, ul/min | J3: Chip Type | K3: Max pressure, Pa | N3: Viscometer | O3: Syringe size, uL | P3: max flow rate (1x pump), uL/min | Q3: max flow rate (2x pump), uL/min
A4: Channel depth, um | B4: 20 | D4: 5 | E4: =$B$7/(D4*10/1000)*10 -> 112.5112511 | F4: =MIN(E4*$B$8/$B$7,$B$9*E4/G4) -> 2250.225023 | G4: =E4*60*$B$5*($B$4)^2/(6*1000*1000000) -> 0.900090009 | H4: =F4*60*$B$5*($B$4)^2/(6*1000*1000000) -> 18.00180018 | J4: A | K4: 10000 | N4: initium | O4: 100 | P4: 1056 | Q4: ---
A5: Channel width, um | B5: 2000 | D5: 100 | E5: =$B$7/(D5*10/1000)*10 -> 5.625562556 | F5: =MIN(E5*$B$8/$B$7,$B$9*E5/G5) -> 112.5112511 | G5: 0.04500450045 | H5: =F5*60*$B$5*($B$4)^2/(6*1000*1000000) -> 0.900090009 | J5: B | K5: 40000 | Q5: ---
A6: Min % FS | B6: 5 | D6: 2 | E6: 281.2781278 | F6: 5625.562556 | G6: 2.250225023 | H6: 45.00450045 | J6: C | K6: 200000 | N6: m-VROC hts-VROC* *(2x pump only) | O6: 100 | P6: =1024/500*O6 -> 204.8 | Q6: =2*P6 -> 409.6
A7: Minimum shear stress, Pa | B7: =$B$3*0.01*$B$6*$B$4/8.8/2/1000*$B$5/($B$5+$B$4) -> 0.5625562556 | D7: 3 | E7: 187.5187519 | F7: 3750.375038 | G7: 1.500150015 | H7: 30.0030003 | J7: D | K7: 1000000 | O7: 250 | P7: =1024/500*O7 -> 512 | Q7: =2*P7 -> 1024
A8: Maximum shear stress, Pa | B8: =$B$3*$B$4/8.8/2/1000*$B$5/($B$5+$B$4) -> 11.25112511 | D8: 1000 | E8: 0.5625562556 | F8: 11.25112511 | G8: 0.004500450045 | H8: 0.0900090009 | J8: E | K8: 1800000 | O8: 500 | P8: 1040 | Q8: 2080
A9: max flow rate, uL/min | B9: 450 | D9: 10 | E9: 56.25562556 | F9: 1125.112511 | G9: 0.4500450045 | H9: 9.00090009 | O9: 1000 | P9: 2050 | Q9: 4100
D10: 700 | E10: 0.8036517938 | F10: 16.07303588 | G10: 0.00642921435 | H10: 0.128584287 | O10: 2500 | P10: 5200 | Q10: 10400
D11: 700 | E11: 0.8036517938 | F11: 16.07303588 | G11: 0.00642921435 | H11: 0.128584287 | O11: 10000 | P11: 20500 | Q11: 40000
D12: 13 | E12: 43.27355813 | F12: 865.4711625 | G12: 0.346188465 | H12: 6.9237693 | O12: 25000 | P12: 50000 | Q12: 100000
D13: 14 | E13: 40.18258969 | F13: 803.6517938 | G13: 0.3214607175 | H13: 6.42921435 | N13: microVISC | O13: 400 | P13: 450 | Q13: ---
D14: 15 | E14: 37.50375038 | F14: 750.0750075 | G14: 0.300030003 | H14: 6.00060006
D15: 16 | E15: 35.15976598 | F15: 703.1953195 | G15: 0.2812781278 | H15: 5.625562556 | O15: Chip Type | P15: Channel depth, um | Q15: Channel Width, um
D16: 2000 | E16: 0.2812781278 | F16: 5.625562556 | G16: 0.002250225023 | H16: 0.04500450045 | O16: X02 | P16: 20 | Q16: 2000
O17: X04 | P17: 40 | Q17: 2000
O18: X05 | P18: 50 | Q18: 2000
O19: X10 | P19: 100 | Q19: 2000
O20: X20 | P20: 200 | Q20: 2000
O21: X30 | P21: 300 | Q21: 3000
